Cogmind - Beta 15 @@@ ROGUE MODE // 2025.09.26 @ 14:07:07 Player: Dolina Result: Destroyed by S-10 Pest with Light Assault Rifle Performance ------------- Evolutions (0) 0 Regions Visited (2) 400 Robots Destroyed (15) 75 Value Destroyed (400) 400 Prototype IDs (2) 40 Alien Tech Used (0) 0 Bonus (0) 0 TOTAL SCORE: 915 Bonus ------- None Cogmind --------- Core Integrity 0/250 Matter 273/300 Energy 160/160 System Corruption 0% Temperature Cool (0) Movement Walking (120) Location -10/Subcaves Parts ------- > --- POWER (1) -------- Light Nuclear Core > --- PROPULSION (2) --- Aluminum Leg Aluminum Leg > --- UTILITY (2) ------ Targeting Computer > --- WEAPON (2) ------- Heavy Riot Gun Slug Cannon > --- INVENTORY (5) ---- Ion Engine Light Ion Engine EM Pulse Gun Riot Gun Peak State ------------ > --- POWER ------------ Light Nuclear Core > --- PROPULSION ------- Aluminum Leg Aluminum Leg > --- UTILITY ---------- Targeting Computer Weapon Shielding > --- WEAPON ----------- Heavy Riot Gun Slug Cannon > --- INVENTORY -------- Ion Engine Light Ion Engine EM Pulse Gun Riot Gun [Rating: 15] Favorites ----------- Power Ion Engine Engine Ion Engine Power Core Light Nuclear Core Propulsion Aluminum Leg Leg Aluminum Leg Utility Weapon Shielding Storage Small Storage Unit Processor Targeting Computer Protection Weapon Shielding Weapon Slug Cannon Energy Gun Heavy Riot Gun Ballistic Gun Shotgun Ballistic Cannon Slug Cannon Build | -11 -10 -10 ------- Run | Yrd Mat Sub Slots Evolved . | . . . Power . | . . . Propulsion . | . . . Utility . | . . . Weapon . | . . . Parts Attached 17 | 6 5 6 Power 2 | 1 . 1 Engine 1 | 1 . . Core 1 | . . 1 Reactor . | . . . Propulsion 3 | 2 . 1 Treads . | . . . Leg 3 | 2 . 1 Wheel . | . . . Hover . | . . . Flight . | . . . Utility 3 | 1 1 1 Device . | . . . Storage 1 | 1 . . Processor 1 | . . 1 Hackware . | . . . Protection 1 | . 1 . Artifact . | . . . Weapon 9 | 2 4 3 Energy Gun 2 | . . 2 Energy Cannon . | . . . Ballistic Gun 4 | 2 2 . Ballistic Cannon 3 | . 2 1 Launcher . | . . . Special Weapon . | . . . Impact Weapon . | . . . Slashing Weapon . | . . . Piercing Weapon . | . . . Special Melee Weapon . | . . . Unidentified Prototypes . | . . . Parts Lost 2 | . . 2 Power . | . . . Propulsion 1 | . . 1 Utility 1 | . . 1 Weapon . | . . . Highest Loss Streak 1 | . . 1 To Critical Strikes . | . . . Average Backups 5 | 2 4 5 Power 1 | . 1 2 Propulsion . | . . . Utility . | . . . Weapon 2 | 1 2 2 Tool/Special . | . . . Unused Backups 4 | . 1 3 Power 2 | . 1 1 Propulsion . | . . . Utility 1 | . . 1 Weapon 1 | . . 1 Tool/Special . | . . . Average Slot Usage (%) 91 | . 85 95 Engine 13 | . 14 13 Leg 25 | . 28 24 Storage 8 | . 14 4 Processor 5 | . . 9 Protection 9 | . . 13 Energy Gun 6 | . . 9 Ballistic Gun 10 | . 16 6 Ballistic Cannon 11 | . 10 11 Peak Build Rating 15 | 6 9 15 Average Rating 9 | 3 6 12 On Entrance 5 | . 6 9 Naked Turns . | . . . Heaviest Build 21 | 14 17 21 Greatest Support 20 | 20 20 20 Greatest Overweight (x) 3 | 3 . 1 Average Overweight (x) . | . . . Largest Inventory Capacity 8 | 8 8 8 Average Capacity 6 | 6 8 6 Most Carried 8 | 5 8 8 Average Carried 5 | 2 5 5 Final Capacity 8 | 8 8 5 Final Carried 6 | 2 6 4 Class Distribution -------------------- 100% | Mutant Dominant Class ---------------- Mutant | -10/Materials Mutant | -10/Subcaves Resources | -11 -10 -10 ----------- Run | Yrd Mat Sub Matter Collected 651 | 181 271 199 Remotely . | . . . Salvage Created 436 | . 252 184 Parts 30 | . 15 15 Haulers Intercepted 1 | . 1 . Recyclers Shooed . | . . . Parts Field Recycled . | . . . Retrieved Matter . | . . . Parts Self-Destructed . | . . . Prevented . | . . . Kills | -11 -10 -10 ------- Run | Yrd Mat Sub Combat Hostiles Destroyed 13 | . 7 6 Guns 4 | . 2 2 Cannons 7 | . 5 2 AOE 2 | . . 2 Classes Destroyed 5 | . 4 1 Hauler 1 | . 1 . Watcher 1 | . 1 . Swarmer 5 | . 3 2 Grunt 4 | . 4 . Subdweller 4 | . . 4 Best Kill Streak 3 | . 3 2 Combat Bots Only 3 | . 3 2 Max Kills in Single Turn 1 | . 1 1 Gunslinging . | . . . Exploded 1 | . . 1 Melee . | . . . Uniques/NPCs Destroyed . | . . . Combat | -11 -10 -10 -------- Run | Yrd Mat Sub Hostile Shots Fired 68 | . 29 39 Missed 24 | . 8 16 Hits 44 | . 21 23 Projectile 44 | . 21 23 AOE 2 | . . 2 Damage Taken 721 | . 219 502 Core 255 | . 77 178 Absorbed by Shields . | . . . Redirected to Shielding 53 | . . 53 Core Remaining (%) 100 | 100 . . Volleys Fired 46 | . 26 20 Largest 2 | . 2 2 Hottest 100 | . 50 100 Shots Fired 92 | . 52 40 Gun 48 | . 26 22 Cannon 44 | . 26 18 Launcher . | . . . Special . | . . . Kinetic 77 | . 52 25 Thermal . | . . . Explosive . | . . . Electromagnetic 15 | . . 15 Robot Hit Streak 7 | . 7 5 Robot Miss Streak 5 | . 5 3 Penetration Max . | . . . Secondary Targets . | . . . Shots Hit Robots 62 | . 32 30 Core Hits 26 | . 14 12 Critical Kills . | . . . Critical Parts Destroyed 1 | . 1 . Critical Strikes 4 | . 3 1 Destroy 2 | . 1 1 Blast 2 | . 2 . Melee Attacks . | . . . Impact . | . . . Slashing . | . . . Piercing . | . . . Sneak Attacks . | . . . Combat Hostiles . | . . . Follow-up Attacks . | . . . Damage Inflicted 1132 | . 487 645 Guns 485 | . 216 269 Cannons 515 | . 271 244 Explosions 132 | . . 132 Melee . | . . . Ramming . | . . . Kinetic 829 | . 487 342 Thermal 132 | . . 132 Explosive . | . . . Electromagnetic 171 | . . 171 Impact . | . . . Slashing . | . . . Piercing . | . . . Highest Corruption . | . . . Average Corruption . | . . . Corruption Purged . | . . . Corruption Blocked . | . . . Overload Shots . | . . . Overflow Damage 17 | . . 17 Projectiles . | . . . Explosions 17 | . . 17 Melee . | . . . Knockbacks 4 | . 2 2 Impact . | . . . Kinetic 4 | . 2 2 Secondary . | . . . Self-Inflicted Damage 32 | . . 32 Shots 1 | . . 1 Rammed . | . . . Targets Rammed 1 | . 1 . Kicked 1 | . 1 . Crushed . | . . . Highest Temperature 8 | . 8 7 Average Temperature 3 | . 3 4 Received Heat Transfer 126 | . 84 42 Siege Activations . | . . . Martial Activations . | . . . Shielding Activations . | . . . Robots Disrupted . | . . . Combat Hostiles . | . . . Robots Corrupted . | . . . Combat Hostiles . | . . . Parts Fried 1 | . . 1 Impact Corruptions . | . . . Robots Melted . | . . . Combat Hostiles . | . . . Parts Melted 1 | . . 1 Heat Transferred 100 | . . 100 Parts Sabotaged . | . . . Parts Stolen . | . . . Parts Stripped . | . . . Power Chain Reactions 2 | . . 2 Alert | -11 -10 -10 ------- Run | Yrd Mat Sub Maximum Alert Level . | . . . Low Security (%) 100 | 100 100 . Level 1 . | . . . Level 2 . | . . . Level 3 . | . . . Level 4 . | . . . Level 5 . | . . . High Security . | . . . Max Security . | . . . Peak Influence 70 | . 70 . Initial . | . . . Average 20 | . 21 . Influence Increases 254 | . 204 50 Destroy 0b10 Robot/C 180 | . 140 40 Destroy 0b10 Robot/NC 10 | . 10 . Destroy Leader 44 | . 34 10 Successful Hack 4 | . 4 . Disable Machine 15 | . 15 . Destroy Structure 1 | . 1 . Influence Decreases 214 | . 202 12 Entered New Map 2 | . . 2 Time Decay 202 | . 202 . Lost Part 10 | . . 10 Squads Dispatched . | . . . Investigation . | . . . Extermination . | . . . Reinforcement . | . . . Assault . | . . . Garrison . | . . . Intercept . | . . . Searches Triggered . | . . . Construction Impeded . | . . . Haulers Reinforced . | . . . Active Scanning Responses . | . . . Cargo Convoy Interrupts . | . . . Stealth | -11 -10 -10 --------- Run | Yrd Mat Sub Distress Signals 2 | . 2 . Communications Jammed . | . . . Distress Signals . | . . . Times Spotted 26 | . 15 11 Peak Tracking Total 5 | . 5 3 Tactical Retreats . | . . . Traps | -11 -10 -10 ------- Run | Yrd Mat Sub Traps Triggered 1 | . . 1 Indirectly . | . . . Trap Hack Attempts . | . . . Triggered . | . . . Disarmed . | . . . Reprogrammed . | . . . Reused . | . . . Traps Extracted . | . . . Installed . | . . . Triggered . | . . . Machines | -11 -10 -10 ---------- Run | Yrd Mat Sub Machines Disabled 1 | . 1 . Max in Single Turn 1 | . 1 . Machines Repaired . | . . . Machines Dismantled . | . . . Machines Sabotaged . | . . . Overloaded Fab Kills . | . . . Hacking | -11 -10 -10 --------- Run | Yrd Mat Sub Machines Accessed 3 | . 3 . Terminals 3 | . 3 . Fabricators . | . . . Repair Stations . | . . . Recycling Units . | . . . Scanalyzers . | . . . Garrison Access . | . . . Total Hacks 9 | . 9 . Successful 6 | . 6 . Failed 3 | . 3 . Catastrophic . | . . . Database Lockouts . | . . . Manual . | . . . Terminals 9 | . 9 . Fabricators . | . . . Repair Stations . | . . . Recycling Units . | . . . Scanalyzers . | . . . Garrison Access . | . . . Terminal Hacks 6 | . 6 . Record 1 | . 1 . Prototype ID Bank 1 | . 1 . Emergency Access Points 1 | . 1 . Locate Traps 2 | . 2 . Zone Layout 1 | . 1 . Fabricator Hacks . | . . . Repair Station Hacks . | . . . Recycling Unit Hacks . | . . . Scanalyzer . | . . . Garrison Access Hacks . | . . . Unauthorized Hacks . | . . . Terminals . | . . . Fabricators . | . . . Repair Stations . | . . . Recycling Units . | . . . Scanalyzers . | . . . Garrison Access . | . . . Data Cores Recovered . | . . . Used . | . . . Hacking Detections 2 | . 2 . Full Trace Events 1 | . 1 . Feedback Events . | . . . Feedback Blocked . | . . . Robot Schematics Acquired . | . . . Robots Built . | . . . Authchips . | . . . Time . | . . . Total Robot Build Rating . | . . . Part Schematics Acquired . | . . . Parts Built . | . . . Authchips . | . . . Time . | . . . Total Part Build Rating . | . . . Parts Repaired . | . . . Time . | . . . Parts Recycled . | . . . Recycled Matter . | . . . Retrieved Matter . | . . . Retrieved Components . | . . . Parts Scanalyzed . | . . . Part Schematics Acquired . | . . . Parts Damaged . | . . . Bothacking | -11 -10 -10 ------------ Run | Yrd Mat Sub Used RIF Installer . | . . . Robots Hacked . | . . . Non-combat . | . . . Combat . | . . . Robot Hacks Applied . | . . . Relay Couplers Released . | . . . Fabnet Peak Effective % . | . . . Robots Rewired . | . . . Allies Hacked . | . . . Hacks Repelled . | . . . Allies | -11 -10 -10 -------- Run | Yrd Mat Sub Total Allies . | . . . Largest Group . | . . . Highest-Rated Group . | . . . Highest-Rated Ally . | . . . Total Orders . | . . . Ally Attacks . | . . . Total Damage . | . . . Kills . | . . . Allies Corrupted . | . . . Allies Melted . | . . . Intel | -11 -10 -10 ------- Run | Yrd Mat Sub Active Infowar (turns) . | . . . Robot Analysis Total . | . . . Derelict Logs Recovered 1 | . . 1 Drone Launches . | . . . Drone Recoveries . | . . . Exploration | -11 -10 -10 ------------- Run | Yrd Mat Sub Turns Passed 1649 | 48 573 1028 Spaces Moved 1014 | 38 385 591 Core 20 | 20 . . Treads . | . . . Legs 994 | 18 385 591 Wheels . | . . . Hover . | . . . Flight . | . . . Fastest Speed 50 | 50 120 120 Average Speed 132 | 96 120 142 Slowest Speed 200 | 200 120 190 Overloaded Moves . | . . . Propulsion Burnouts . | . . . Robots Hopped . | . . . Potential Cave-ins . | . . . Cave-ins Triggered . | . . . Exploration Rate (%) 39 | 3 75 40 Regions Visited 2 Branch Regions 1 Pre-discovered Areas 1 | . . 1 Known Exits Taken . | . . . Unknown Exits Taken 2 | 1 1 . Scrap Searched 5 | . . 5 Spaces Dug . | . . . Terrain Destroyed 8 | . . 8 Melee . | . . . Projectile 5 | . . 5 AOE 3 | . . 3 Terrain Rammed . | . . . Walls Destroyed . | . . . Machines Disabled . | . . . Actions | -11 -10 -10 --------- Run | Yrd Mat Sub Total 1231 | 48 445 738 Wait 127 | . 17 110 Move 1012 | 37 384 591 Hop . | . . . Pick Up 17 | 5 8 4 Fast Attach 5 | 3 . 2 Attach 10 | 3 4 3 Detach 1 | . 1 . Swap 2 | . 1 1 Drop 10 | . 3 7 Fire 46 | . 26 20 Melee . | . . . Ram . | . . . Kick 1 | . 1 . Crush . | . . . Escape Stasis . | . . . Rewire . | . . . Trap . | . . . Miscellaneous . | . . . Route ------- -11/Scrapyard -10/Materials (discovered 5 exits: [*Mat x3] / [*Min] / [*Sub]) -10/Subcaves History --------- Turn | Location | Event 33 | -11/Scrapyard | Discovered new exit (range 15) 49 | -11/Scrapyard | Entered Materials 217 | -10/Materials | Discovered new exit (range 8) 312 | -10/Materials | Build established: Mutant 410 | -10/Materials | Discovered new exit (range 15) 540 | -10/Materials | Discovered new exit (range 15) 610 | -10/Materials | Discovered new exit (range 11) 615 | -10/Materials | Discovered new exit (range 8) 622 | -10/Materials | Entered Subcaves 633 | -10/Subcaves | A swath of the cavern ceiling suddenly collapsed 811 | -10/Subcaves | Ambushed by swarm of Subdwellers 862 | -10/Subcaves | Lost 3 allies 911 | -10/Subcaves | Core integrity fell below 50% 1201 | -10/Subcaves | A swath of the cavern ceiling suddenly collapsed 1394 | -10/Subcaves | Core integrity fell below 20% 1423 | -10/Subcaves | Learned location of Zion (-6) 1650 | -10/Subcaves | Destroyed by S-10 Pest with Light Assault Rifle Last Messages --------------- CL-VUQ(R) destroyed. JP-LV3(R) knocked back. Aluminum Leg destroyed. JP-LV3(R) destroyed. Acquired 31 matter. SL-C0J(R) destroyed. D7-1CW(R) knocked back. Chain reaction triggered in Sub. Power Source. Disposable Heat Sink fried. D7-1CW(R) destroyed. Acquired 31 matter. Acquired 11 matter. Acquired derelict log, extracted data. World map updated: -6/Zion. Chain reaction triggered in Lgt. Ion Engine. Flight Unit melted. S-10 Pest destroyed. Weapon Shielding destroyed. Destroyed Flight Unit. S-10 Pest destroyed. Map ----- +----------------------------------------------------+ | ?????????????????????????????????????????????????? | | ?????????????????????????????????????????????????? | | ?????????????????????????????????????????????????? | | ?????????????????????????????????????????????????? | | ?????????????????????????????????????????????????? | | ?????????????????????????????????????????????????? | | ?????????????????????????????????????????????????? | | ?????????????????????????????????????????????????? | | ?????????????????????###?????????????????????????? | | ????????????????????## ###????####??????????????? | | ????????????????????? ###?? ##?????????????? | | ?????????????????????? ### ######????????? | | ??????????????????????? ## ####?????? | | ????????????###????????# ?????? | | ????????##### ??????## ? ????? | | ???????? ????## ??? ????? | | ???????? ##??# #??? #???? | | ??????? s ### ##?? ???? | | ???????? ##? ???? | | ???????????# ## ??? | | ???????????# ??? | | ????????????? ### ??? | | ????????????????# ## ###?????? | | ????????????????#???## %[ ######???????? | | ?????????????????????###;% ; ##????????????? | | ???????????????????????# @ ### #?????????????? | | ??????????????????????#; #?# ##????????????? | | ??????????????????????### ##?# #????????????? | | ????????????????????????# #?## #????????????? | | ???????????????????????? ?# ##??????? #??? | | ???????????????????????# ###?# ##???? #??? | | ??????????????????????? ????## #?? ????? | | ???????????????????????% ?????## ## #??????? | | ????????????????????????#?????## #??????? | | ?????????????????????????????## #??? | | ????????????????????????????## ## ###??? | | ????????????????????????????# #### ##????? | | ????????????????????????????## ### ##?????? | | ??????????????????????###????# #?##??????? | | ?????????????????????## #???# #?????????? | | ?????????????????????# #### #?????????? | | ?????????????????????# ### #?????????? | | ???????????????????????## ##?##?????????? | | ????????????????????????## ##???????????? | | ?????????????????????????### ##??????????? | | ??????????????????????????## #???? | | ?????????????????????????## ## #????? | | ???????????????????????### #?###### #????? | | ??????????????????????## ##??????? #????? | | ????????????????????### #???????? #????? | +----------------------------------------------------+ Best States ------------- Heat Dissipation 25 Energy Generation 14 Energy Capacity 250 Matter Stores 300 Matter Capacity 300 Sight Range 16 Terrain Scan Density 10 Weapon Shielding 33 Evasion (%) 55 Targeting Accuracy 5 Item Schematics ----------------- None Robot Schematics ------------------ None Fabricated ------------ Nothing Repaired ---------- Nothing Alien Tech Used ----------------- None Achievements -------------- None Challenges ------------ None Game ------ Seed DirectedCryofiberStatue Manual? 0 Play Time 00:18:24 Cumulative 13.1 hours Start 2025.09.26 @ 13:52:17 End 2025.09.26 @ 14:07:07 Sessions 1 Manual Loads 0 Difficulty Rogue Special Mode None Game No. 23 Rogue 23 Adventurer 0 Explorer 0 Win Type - Total 0 Types 0/0/0/0/0/0/0/0/0/0 Lore% 4 Gallery% 13 Achievement% 11 Wizard Run 0 Options --------- Layout 1 ASCII 0 Keyboard 0 Movement Mouse Keybinds 0 Fullscreen 1 Font 32/SmallcapsGlow Map View 50x40 Zoom Use 0% Tactical HUD 0 Map Filters NONE Filters NONE Steam 1 RUN: 8d048979-33af-4dfd-aef0-4911572d1005